[Event "Titled Tuesday Blitz May 17 Late 2022"]
[White "Chigaev, Maksim"]
[Black "Trost, Edvin"]
[WhiteFideId "4108116"]
[BlackFideId "1729519"]
[WhiteElo "2457"]
[BlackElo "2165"]
[Result "1-0"]
[Round "03"]
[TimeControl "180+1"]
[Date "2022.05.17"]
[WhiteClock "0:00:08"]
[BlackClock "0:00:02"]

1. d4 {[%clk 0:03:00]}  Nf6 {[%clk 0:02:56]} 2. Nf3 {[%clk 0:03:01]}  d6 {[%clk 0:02:55]} 3. c4 {[%clk 0:03:00]}  Nbd7 {[%clk 0:02:55]} 4. Nc3 {[%clk 0:02:59]}  e5 {[%clk 0:02:56]} 5. e4 {[%clk 0:03:00]}  Be7 {[%clk 0:02:56]} 6. Be2 {[%clk 0:03:00]}  O-O {[%clk 0:02:56]} 7. O-O {[%clk 0:03:01]}  c6 {[%clk 0:02:55]} 8. Re1 {[%clk 0:03:01]}  Re8 {[%clk 0:02:55]} 9. Bf1 {[%clk 0:03:01]}  Bf8 {[%clk 0:02:55]} 10. Rb1 {[%clk 0:03:01]}  a6 {[%clk 0:02:55]} 11. b4 {[%clk 0:02:40]}  b5 {[%clk 0:02:51]} 12. a4 {[%clk 0:02:36]}  bxc4 {[%clk 0:02:47]} 13. Bxc4 {[%clk 0:02:37]}  h6 {[%clk 0:02:45]} 14. Bb2 {[%clk 0:02:24]}  Bb7 {[%clk 0:02:37]} 15. Qb3 {[%clk 0:02:20]}  Qe7 {[%clk 0:02:37]} 16. Nh4 {[%clk 0:01:58]}  Nb6 {[%clk 0:02:27]} 17. Ng6 {[%clk 0:01:52]}  Qc7 {[%clk 0:02:24]} 18. Nxf8 {[%clk 0:01:48]}  Nxc4 {[%clk 0:02:14]} 19. Qxc4 {[%clk 0:01:49]}  Rxf8 {[%clk 0:02:15]} 20. dxe5 {[%clk 0:01:49]}  dxe5 {[%clk 0:02:13]} 21. a5 {[%clk 0:01:50]}  Rfd8 {[%clk 0:02:09]} 22. Na4 {[%clk 0:01:48]}  Bc8 {[%clk 0:01:55]} 23. Nb6 {[%clk 0:01:39]}  Rb8 {[%clk 0:01:53]} 24. h3 {[%clk 0:01:40]}  Nd7 {[%clk 0:01:51]} 25. Na4 {[%clk 0:01:35]}  Rb5 {[%clk 0:01:51]} 26. Nc3 {[%clk 0:01:30]}  Rb8 {[%clk 0:01:51]} 27. Na4 {[%clk 0:01:28]}  Rb5 {[%clk 0:01:50]} 28. Rbd1 {[%clk 0:01:28]}  Nf6 {[%clk 0:01:36]} 29. Rxd8+ {[%clk 0:01:06]}  Qxd8 {[%clk 0:01:37]} 30. Nc5 {[%clk 0:01:05]}  Qd2 {[%clk 0:01:23]} 31. Bc3 {[%clk 0:00:47]}  Qc2 {[%clk 0:01:23]} 32. Qd3 {[%clk 0:00:28]}  Qxd3 {[%clk 0:01:00]} 33. Nxd3 {[%clk 0:00:29]}  Nd7 {[%clk 0:01:00]} 34. Rc1 {[%clk 0:00:23]}  Bb7 {[%clk 0:00:55]} 35. Bd2 {[%clk 0:00:19]}  c5 {[%clk 0:00:39]} 36. bxc5 {[%clk 0:00:19]}  Bxe4 {[%clk 0:00:39]} 37. c6 {[%clk 0:00:19]}  Bxc6 {[%clk 0:00:32]} 38. Rxc6 {[%clk 0:00:19]}  Rd5 {[%clk 0:00:32]} 39. Rxa6 {[%clk 0:00:18]}  Rxd3 {[%clk 0:00:32]} 40. Be3 {[%clk 0:00:16]}  f5 {[%clk 0:00:30]} 41. g3 {[%clk 0:00:08]}  Ra3 {[%clk 0:00:26]} 42. Rd6 {[%clk 0:00:07]}  Nf6 {[%clk 0:00:24]} 43. a6 {[%clk 0:00:08]}  Ne4 {[%clk 0:00:23]} 44. Re6 {[%clk 0:00:08]}  Ra5 {[%clk 0:00:12]} 45. a7 {[%clk 0:00:07]}  Kf7 {[%clk 0:00:12]} 46. Rxe5 {[%clk 0:00:06]}  Ra1+ {[%clk 0:00:10]} 47. Kg2 {[%clk 0:00:06]}  Nd6 {[%clk 0:00:06]} 48. Rd5 {[%clk 0:00:04]}  Ke6 {[%clk 0:00:01]} 49. Rd3 {[%clk 0:00:04]}  Ra6 {[%clk 0:00:01]} 50. Bc5 {[%clk 0:00:04]}  Nb5 {[%clk 0:00:01]} 51. Re3+ {[%clk 0:00:03]}  Kf6 {[%clk 0:00:01]} 52. Rb3 {[%clk 0:00:03]}  Nxa7 {[%clk 0:00:02]} 53. Rb7 {[%clk 0:00:03]}  Nc6 {[%clk 0:00:02]} 54. h4 {[%clk 0:00:03]}  Kg6 {[%clk 0:00:02]} 55. Bf8 {[%clk 0:00:04]}  Kf6 {[%clk 0:00:01]} 56. Bxg7+ {[%clk 0:00:04]}  Kg6 {[%clk 0:00:02]} 57. Bc3 {[%clk 0:00:04]}  Nd8 {[%clk 0:00:02]} 58. Re7 {[%clk 0:00:04]}  Kh5 {[%clk 0:00:03]} 59. f3 {[%clk 0:00:04]}  Ne6 {[%clk 0:00:03]} 60. Kh3 {[%clk 0:00:04]}  Rc6 {[%clk 0:00:03]} 61. g4+ {[%clk 0:00:04]}  fxg4+ {[%clk 0:00:04]} 62. fxg4+ {[%clk 0:00:05]}  Kg6 {[%clk 0:00:05]} 63. h5+ {[%clk 0:00:06]}  Kg5 {[%clk 0:00:05]} 64. Bd2+ {[%clk 0:00:06]}  Kf6 {[%clk 0:00:06]} 65. Rh7 {[%clk 0:00:06]}  Ng5+ {[%clk 0:00:04]} 66. Bxg5+ {[%clk 0:00:06]}  Kxg5 {[%clk 0:00:04]} 67. Rg7+ {[%clk 0:00:07]}  Kf4 {[%clk 0:00:04]} 68. Rg6 {[%clk 0:00:06]}  Rc3+ {[%clk 0:00:05]} 69. Kh4 {[%clk 0:00:07]}  Rc1 {[%clk 0:00:04]} 70. Rf6+ {[%clk 0:00:07]}  Ke5 {[%clk 0:00:05]} 71. Rxh6 {[%clk 0:00:07]}  Rh1+ {[%clk 0:00:02]} 72. Kg5 {[%clk 0:00:08]}  Rb1 {[%clk 0:00:01]} 73. Rf6 {[%clk 0:00:08]}  Rb8 {[%clk 0:00:02]} 74. Rf5+ {[%clk 0:00:07]}  Ke6 {[%clk 0:00:03]} 75. h6 {[%clk 0:00:08]}  Rg8+ {[%clk 0:00:03]} 76. Kh5 {[%clk 0:00:08]}  Rxg4 {[%clk 0:00:02]} 77. Kxg4 {[%clk 0:00:08]} 1-0


[Site "https://www.chess.com"]

[Event "Titled Tuesday Blitz May 17 Late 2022"]
[White "De La Colina, Nicolas"]
[Black "Kamsky, Gata"]
[WhiteFideId "30946921"]
[BlackFideId "2000024"]
[WhiteElo "2046"]
[BlackElo "2645"]
[Result "0-1"]
[Round "03"]
[TimeControl "180+1"]
[Date "2022.05.17"]
[WhiteClock "0:00:35"]
[BlackClock "0:01:49"]

1. e4 {[%clk 0:03:00]}  c5 {[%clk 0:02:55]} 2. c3 {[%clk 0:03:01]}  Nf6 {[%clk 0:02:54]} 3. e5 {[%clk 0:03:01]}  Nd5 {[%clk 0:02:54]} 4. Nf3 {[%clk 0:03:02]}  Nc6 {[%clk 0:02:52]} 5. d4 {[%clk 0:03:03]}  cxd4 {[%clk 0:02:51]} 6. Bc4 {[%clk 0:03:03]}  Nb6 {[%clk 0:02:50]} 7. Bb3 {[%clk 0:03:03]}  d5 {[%clk 0:02:48]} 8. exd6 {[%clk 0:03:04]}  Qxd6 {[%clk 0:02:48]} 9. O-O {[%clk 0:03:04]}  Be6 {[%clk 0:02:48]} 10. Na3 {[%clk 0:03:04]}  dxc3 {[%clk 0:02:37]} 11. Nb5 {[%clk 0:02:46]}  Qxd1 {[%clk 0:02:34]} 12. Rxd1 {[%clk 0:02:46]}  Rc8 {[%clk 0:02:32]} 13. Bxe6 {[%clk 0:02:45]}  fxe6 {[%clk 0:02:30]} 14. Nxc3 {[%clk 0:02:45]}  h6 {[%clk 0:02:24]} 15. Re1 {[%clk 0:02:39]}  Kf7 {[%clk 0:02:23]} 16. Bf4 {[%clk 0:02:04]}  g5 {[%clk 0:02:18]} 17. Ne5+ {[%clk 0:02:02]}  Nxe5 {[%clk 0:02:15]} 18. Bxe5 {[%clk 0:02:03]}  Rg8 {[%clk 0:02:13]} 19. b3 {[%clk 0:01:56]}  Nd7 {[%clk 0:02:05]} 20. Bd4 {[%clk 0:00:56]}  e5 {[%clk 0:02:01]} 21. Bxa7 {[%clk 0:00:56]}  Rxc3 {[%clk 0:02:00]} 22. Rad1 {[%clk 0:00:56]}  Ke6 {[%clk 0:01:55]} 23. Be3 {[%clk 0:00:44]}  Bg7 {[%clk 0:01:52]} 24. Rd2 {[%clk 0:00:35]}  Rgc8 {[%clk 0:01:49]} 0-1


[Site "https://www.chess.com"]

[Event "Titled Tuesday Blitz May 17 Late 2022"]
[White "Donchenko, Alexander"]
[Black "Fedoseev, Vladimir"]
[WhiteFideId "24603295"]
[BlackFideId "24130737"]
[WhiteElo "2572"]
[BlackElo "2726"]
[Result "1-0"]
[Round "03"]
[TimeControl "180+1"]
[Date "2022.05.17"]
[WhiteClock "0:01:36"]
[BlackClock "0:01:05"]

1. d4 {[%clk 0:03:00]}  Nf6 {[%clk 0:02:27]} 2. Nf3 {[%clk 0:03:00]}  g6 {[%clk 0:02:27]} 3. g3 {[%clk 0:03:00]}  Bg7 {[%clk 0:02:27]} 4. Bg2 {[%clk 0:03:01]}  O-O {[%clk 0:02:28]} 5. O-O {[%clk 0:03:01]}  d6 {[%clk 0:02:28]} 6. b3 {[%clk 0:03:02]}  b5 {[%clk 0:02:26]} 7. Bb2 {[%clk 0:03:00]}  Bb7 {[%clk 0:02:25]} 8. Nbd2 {[%clk 0:03:00]}  Nbd7 {[%clk 0:02:24]} 9. c4 {[%clk 0:02:58]}  bxc4 {[%clk 0:02:24]} 10. Nxc4 {[%clk 0:02:59]}  c5 {[%clk 0:02:25]} 11. Rc1 {[%clk 0:02:52]}  Rc8 {[%clk 0:02:24]} 12. dxc5 {[%clk 0:02:39]}  Nxc5 {[%clk 0:02:23]} 13. Bd4 {[%clk 0:02:29]}  Ba6 {[%clk 0:02:01]} 14. Qd2 {[%clk 0:02:17]}  Nfe4 {[%clk 0:01:59]} 15. Qb2 {[%clk 0:02:16]}  e5 {[%clk 0:01:56]} 16. Be3 {[%clk 0:02:14]}  Qe7 {[%clk 0:01:47]} 17. Rfd1 {[%clk 0:02:14]}  Rfd8 {[%clk 0:01:47]} 18. Qa3 {[%clk 0:02:11]}  Bb5 {[%clk 0:01:41]} 19. Nxd6 {[%clk 0:01:57]}  Rxd6 {[%clk 0:01:39]} 20. Rxd6 {[%clk 0:01:56]}  Qxd6 {[%clk 0:01:32]} 21. b4 {[%clk 0:01:56]}  Rd8 {[%clk 0:01:14]} 22. bxc5 {[%clk 0:01:54]}  Qd1+ {[%clk 0:01:13]} 23. Rxd1 {[%clk 0:01:40]}  Rxd1+ {[%clk 0:01:14]} 24. Bf1 {[%clk 0:01:40]}  Bxe2 {[%clk 0:01:12]} 25. Qa4 {[%clk 0:01:40]}  Bxf3 {[%clk 0:01:06]} 26. Qe8+ {[%clk 0:01:35]}  Bf8 {[%clk 0:01:05]} 27. Bh6 {[%clk 0:01:36]} 1-0


[Site "https://www.chess.com"]

[Event "Titled Tuesday Blitz May 17 Late 2022"]
[White "Jones, Gawain C B"]
[Black "Kumic, Filip"]
[WhiteFideId "409561"]
[BlackFideId "931373"]
[WhiteElo "2657"]
[BlackElo "2310"]
[Result "1-0"]
[Round "03"]
[TimeControl "180+1"]
[Date "2022.05.17"]
[WhiteClock "0:00:49"]
[BlackClock "0:00:15"]

1. Nf3 {[%clk 0:03:00]}  d6 {[%clk 0:02:59]} 2. d4 {[%clk 0:02:58]}  g6 {[%clk 0:02:53]} 3. e4 {[%clk 0:02:58]}  Nf6 {[%clk 0:02:51]} 4. Bd3 {[%clk 0:02:58]}  Bg7 {[%clk 0:02:51]} 5. c3 {[%clk 0:02:56]}  O-O {[%clk 0:02:51]} 6. O-O {[%clk 0:02:55]}  Nc6 {[%clk 0:02:51]} 7. Re1 {[%clk 0:02:52]}  e5 {[%clk 0:02:51]} 8. h3 {[%clk 0:02:51]}  a5 {[%clk 0:02:49]} 9. Nbd2 {[%clk 0:02:44]}  Nd7 {[%clk 0:02:47]} 10. d5 {[%clk 0:02:34]}  Ne7 {[%clk 0:02:47]} 11. b4 {[%clk 0:02:31]}  h6 {[%clk 0:02:42]} 12. Nc4 {[%clk 0:02:25]}  axb4 {[%clk 0:02:20]} 13. cxb4 {[%clk 0:02:25]}  Nxd5 {[%clk 0:02:01]} 14. exd5 {[%clk 0:02:23]}  e4 {[%clk 0:02:01]} 15. Bb2 {[%clk 0:01:58]}  Bxb2 {[%clk 0:01:50]} 16. Nxb2 {[%clk 0:01:59]}  exf3 {[%clk 0:01:44]} 17. Qxf3 {[%clk 0:01:58]}  Qf6 {[%clk 0:01:27]} 18. Qxf6 {[%clk 0:01:50]}  Nxf6 {[%clk 0:01:28]} 19. Bc4 {[%clk 0:01:47]}  Ra3 {[%clk 0:01:19]} 20. Bb3 {[%clk 0:01:46]}  Bd7 {[%clk 0:01:11]} 21. Rac1 {[%clk 0:01:43]}  Rc8 {[%clk 0:01:08]} 22. Nc4 {[%clk 0:01:37]}  Ra7 {[%clk 0:01:03]} 23. Na5 {[%clk 0:01:32]}  Kf8 {[%clk 0:01:01]} 24. Rc3 {[%clk 0:01:29]}  b6 {[%clk 0:00:57]} 25. Nc6 {[%clk 0:01:25]}  Bxc6 {[%clk 0:00:56]} 26. dxc6 {[%clk 0:01:25]}  Ra3 {[%clk 0:00:55]} 27. Rf3 {[%clk 0:01:24]}  Kg7 {[%clk 0:00:37]} 28. Re7 {[%clk 0:01:23]}  d5 {[%clk 0:00:37]} 29. b5 {[%clk 0:01:11]}  Ra7 {[%clk 0:00:32]} 30. g4 {[%clk 0:01:04]}  Rd8 {[%clk 0:00:26]} 31. h4 {[%clk 0:01:03]}  Kf8 {[%clk 0:00:21]} 32. Re5 {[%clk 0:00:59]}  Nxg4 {[%clk 0:00:19]} 33. Rxd5 {[%clk 0:00:57]}  Rxd5 {[%clk 0:00:19]} 34. Bxd5 {[%clk 0:00:58]}  f5 {[%clk 0:00:17]} 35. h5 {[%clk 0:00:51]}  Kg7 {[%clk 0:00:17]} 36. hxg6 {[%clk 0:00:51]}  Kxg6 {[%clk 0:00:18]} 37. Be6 {[%clk 0:00:50]}  Ne5 {[%clk 0:00:15]} 38. Rxf5 {[%clk 0:00:49]} 1-0


[Site "https://www.chess.com"]

[Event "Titled Tuesday Blitz May 17 Late 2022"]
[White "Krstulovic, Alex"]
[Black "Wagner, Dennis"]
[WhiteFideId "760056"]
[BlackFideId "24650684"]
[WhiteElo "2193"]
[BlackElo "2355"]
[Result "0-1"]
[Round "03"]
[TimeControl "180+1"]
[Date "2022.05.17"]
[WhiteClock "0:00:03"]
[BlackClock "0:00:14"]

1. e4 {[%clk 0:03:00]}  e5 {[%clk 0:02:59]} 2. Nf3 {[%clk 0:03:00]}  Nc6 {[%clk 0:03:00]} 3. Bc4 {[%clk 0:03:00]}  Nf6 {[%clk 0:03:00]} 4. d3 {[%clk 0:03:00]}  Bc5 {[%clk 0:03:01]} 5. O-O {[%clk 0:02:59]}  O-O {[%clk 0:03:01]} 6. c3 {[%clk 0:02:59]}  d5 {[%clk 0:03:01]} 7. exd5 {[%clk 0:02:59]}  Nxd5 {[%clk 0:03:02]} 8. Re1 {[%clk 0:02:58]}  Bg4 {[%clk 0:03:01]} 9. h3 {[%clk 0:02:50]}  Bh5 {[%clk 0:03:01]} 10. Nbd2 {[%clk 0:02:50]}  Nb6 {[%clk 0:03:00]} 11. Bb3 {[%clk 0:02:50]}  Qxd3 {[%clk 0:02:59]} 12. Nxe5 {[%clk 0:02:49]}  Qf5 {[%clk 0:03:00]} 13. Nef3 {[%clk 0:02:47]}  Rae8 {[%clk 0:02:58]} 14. g4 {[%clk 0:02:37]}  Bxg4 {[%clk 0:02:58]} 15. hxg4 {[%clk 0:02:37]}  Qxg4+ {[%clk 0:02:58]} 16. Kh1 {[%clk 0:02:36]}  Bxf2 {[%clk 0:02:59]} 17. Nh2 {[%clk 0:02:23]}  Rxe1+ {[%clk 0:02:41]} 18. Qxe1 {[%clk 0:02:22]}  Qg3 {[%clk 0:02:42]} 19. Qf1 {[%clk 0:02:04]}  Re8 {[%clk 0:02:42]} 20. Ndf3 {[%clk 0:01:59]}  Ne5 {[%clk 0:02:42]} 21. Qg2 {[%clk 0:01:32]}  Nxf3 {[%clk 0:01:43]} 22. Nxf3 {[%clk 0:01:26]}  h6 {[%clk 0:00:53]} 23. Qxg3 {[%clk 0:00:58]}  Bxg3 {[%clk 0:00:53]} 24. Kg2 {[%clk 0:00:58]}  Bd6 {[%clk 0:00:53]} 25. Bd2 {[%clk 0:00:56]}  a5 {[%clk 0:00:52]} 26. Re1 {[%clk 0:00:55]}  Rxe1 {[%clk 0:00:52]} 27. Nxe1 {[%clk 0:00:51]}  a4 {[%clk 0:00:52]} 28. Bc2 {[%clk 0:00:51]}  g5 {[%clk 0:00:46]} 29. Be4 {[%clk 0:00:44]}  Nc4 {[%clk 0:00:43]} 30. Bc1 {[%clk 0:00:43]}  b5 {[%clk 0:00:43]} 31. Bc6 {[%clk 0:00:39]}  a3 {[%clk 0:00:31]} 32. b3 {[%clk 0:00:36]}  Nb2 {[%clk 0:00:26]} 33. Bxb5 {[%clk 0:00:35]}  f5 {[%clk 0:00:26]} 34. Be2 {[%clk 0:00:31]}  Kg7 {[%clk 0:00:24]} 35. Nd3 {[%clk 0:00:25]}  Nxd3 {[%clk 0:00:24]} 36. Bxd3 {[%clk 0:00:26]}  Kf6 {[%clk 0:00:25]} 37. b4 {[%clk 0:00:20]}  h5 {[%clk 0:00:25]} 38. Bxa3 {[%clk 0:00:20]}  g4 {[%clk 0:00:26]} 39. Bc1 {[%clk 0:00:20]}  f4 {[%clk 0:00:26]} 40. Be4 {[%clk 0:00:10]}  h4 {[%clk 0:00:26]} 41. a4 {[%clk 0:00:09]}  h3+ {[%clk 0:00:24]} 42. Kh1 {[%clk 0:00:09]}  f3 {[%clk 0:00:19]} 43. Be3 {[%clk 0:00:08]}  Ke5 {[%clk 0:00:17]} 44. Bc6 {[%clk 0:00:08]}  Be7 {[%clk 0:00:16]} 45. a5 {[%clk 0:00:07]}  Bh4 {[%clk 0:00:16]} 46. a6 {[%clk 0:00:06]}  f2 {[%clk 0:00:17]} 47. Bxf2 {[%clk 0:00:04]}  Bxf2 {[%clk 0:00:18]} 48. c4 {[%clk 0:00:03]}  Ba7 {[%clk 0:00:15]} 49. Bd7 {[%clk 0:00:02]}  Kf4 {[%clk 0:00:15]} 50. Bc6 {[%clk 0:00:01]}  g3 {[%clk 0:00:15]} 51. Bb7 {[%clk 0:00:02]}  g2+ {[%clk 0:00:14]} 52. Bxg2 {[%clk 0:00:02]}  hxg2+ {[%clk 0:00:15]} 53. Kxg2 {[%clk 0:00:02]}  Ke3 {[%clk 0:00:16]} 54. c5 {[%clk 0:00:02]}  Kd4 {[%clk 0:00:17]} 55. Kf3 {[%clk 0:00:02]}  Kc4 {[%clk 0:00:15]} 56. Ke4 {[%clk 0:00:03]}  Kxb4 {[%clk 0:00:14]} 57. Kd5 {[%clk 0:00:03]}  Kb5 {[%clk 0:00:14]} 0-1


[Site "https://www.chess.com"]

[Event "Titled Tuesday Blitz May 17 Late 2022"]
[White "Manukyan, Artyom"]
[Black "Svane, Frederik"]
[WhiteFideId "13305786"]
[BlackFideId "12923044"]
[WhiteElo "2034"]
[BlackElo "2459"]
[Result "0-1"]
[Round "03"]
[TimeControl "180+1"]
[Date "2022.05.17"]
[WhiteClock "0:00:03"]
[BlackClock "0:00:33"]

1. e4 {[%clk 0:03:00]}  c5 {[%clk 0:03:00]} 2. Nc3 {[%clk 0:03:00]}  a6 {[%clk 0:02:59]} 3. g3 {[%clk 0:02:59]}  b5 {[%clk 0:02:59]} 4. Bg2 {[%clk 0:03:00]}  Bb7 {[%clk 0:02:59]} 5. d3 {[%clk 0:03:01]}  e6 {[%clk 0:02:58]} 6. Nh3 {[%clk 0:03:01]}  d6 {[%clk 0:02:58]} 7. O-O {[%clk 0:03:01]}  Nf6 {[%clk 0:02:55]} 8. f4 {[%clk 0:03:02]}  Be7 {[%clk 0:02:55]} 9. Be3 {[%clk 0:03:00]}  Nc6 {[%clk 0:02:54]} 10. e5 {[%clk 0:02:57]}  dxe5 {[%clk 0:02:33]} 11. fxe5 {[%clk 0:02:58]}  Nd7 {[%clk 0:02:34]} 12. Qg4 {[%clk 0:02:49]}  O-O {[%clk 0:02:21]} 13. Bh6 {[%clk 0:02:47]}  g6 {[%clk 0:02:21]} 14. Bxf8 {[%clk 0:02:47]}  Qxf8 {[%clk 0:02:17]} 15. Rae1 {[%clk 0:02:31]}  Ncxe5 {[%clk 0:02:11]} 16. Qf4 {[%clk 0:02:27]}  Bxg2 {[%clk 0:02:11]} 17. Kxg2 {[%clk 0:02:28]}  Nc6 {[%clk 0:02:12]} 18. Ne4 {[%clk 0:02:26]}  e5 {[%clk 0:01:43]} 19. Qf2 {[%clk 0:02:12]}  f5 {[%clk 0:01:43]} 20. Nc3 {[%clk 0:02:03]}  Bf6 {[%clk 0:01:25]} 21. Ng1 {[%clk 0:01:49]}  Qd6 {[%clk 0:01:23]} 22. Nf3 {[%clk 0:01:47]}  Rf8 {[%clk 0:01:23]} 23. h4 {[%clk 0:01:46]}  Nd4 {[%clk 0:01:22]} 24. Nxd4 {[%clk 0:01:21]}  cxd4 {[%clk 0:01:21]} 25. Nd1 {[%clk 0:01:21]}  Qc6+ {[%clk 0:01:17]} 26. Kh2 {[%clk 0:01:18]}  h5 {[%clk 0:01:17]} 27. Qg2 {[%clk 0:01:16]}  Qxg2+ {[%clk 0:01:15]} 28. Kxg2 {[%clk 0:01:17]}  Rc8 {[%clk 0:01:16]} 29. Re2 {[%clk 0:01:17]}  Nb6 {[%clk 0:01:16]} 30. c3 {[%clk 0:01:11]}  dxc3 {[%clk 0:01:16]} 31. Nxc3 {[%clk 0:01:09]}  Kf7 {[%clk 0:01:15]} 32. Rfe1 {[%clk 0:01:05]}  Ke6 {[%clk 0:01:13]} 33. a3 {[%clk 0:01:06]}  Nd7 {[%clk 0:01:06]} 34. Kf3 {[%clk 0:00:57]}  Nc5 {[%clk 0:01:02]} 35. Rd2 {[%clk 0:00:38]}  Nb3 {[%clk 0:01:02]} 36. Rdd1 {[%clk 0:00:35]}  Nd4+ {[%clk 0:01:00]} 37. Kg2 {[%clk 0:00:36]}  Bg7 {[%clk 0:00:59]} 38. Rd2 {[%clk 0:00:33]}  Bh6 {[%clk 0:00:58]} 39. Rf2 {[%clk 0:00:33]}  Kd6 {[%clk 0:00:51]} 40. Ne2 {[%clk 0:00:31]}  Nc2 {[%clk 0:00:50]} 41. Rb1 {[%clk 0:00:27]}  Ne3+ {[%clk 0:00:43]} 42. Kh1 {[%clk 0:00:17]}  Rc2 {[%clk 0:00:40]} 43. Rc1 {[%clk 0:00:09]}  Rxb2 {[%clk 0:00:40]} 44. Rc8 {[%clk 0:00:06]}  Rb1+ {[%clk 0:00:34]} 45. Ng1 {[%clk 0:00:06]}  Ng4 {[%clk 0:00:34]} 46. Rg2 {[%clk 0:00:05]}  Be3 {[%clk 0:00:32]} 47. Rg8 {[%clk 0:00:05]}  f4 {[%clk 0:00:32]} 48. Rxg6+ {[%clk 0:00:05]}  Ke7 {[%clk 0:00:32]} 49. gxf4 {[%clk 0:00:05]}  exf4 {[%clk 0:00:32]} 50. R6xg4 {[%clk 0:00:03]}  hxg4 {[%clk 0:00:33]} 51. Rxg4 {[%clk 0:00:03]}  f3 {[%clk 0:00:33]} 52. Re4+ {[%clk 0:00:01]}  Kd6 {[%clk 0:00:33]} 53. Rxe3 {[%clk 0:00:02]}  f2 {[%clk 0:00:33]} 54. Rf3 {[%clk 0:00:03]}  fxg1=Q# {[%clk 0:00:33]} 0-1


[Site "https://www.chess.com"]

[Event "Titled Tuesday Blitz May 17 Late 2022"]
[White "Moskalenko, Alexander"]
[Black "Solon, Nathan"]
[WhiteFideId "4155351"]
[BlackFideId "2017229"]
[WhiteElo "2434"]
[BlackElo "2564"]
[Result "1-0"]
[Round "03"]
[TimeControl "180+1"]
[Date "2022.05.17"]
[WhiteClock "0:01:13"]
[BlackClock "0:00:10"]

1. e4 {[%clk 0:03:00]}  e5 {[%clk 0:02:59]} 2. Nf3 {[%clk 0:03:00]}  Nf6 {[%clk 0:02:59]} 3. Nc3 {[%clk 0:03:01]}  Nc6 {[%clk 0:02:58]} 4. d4 {[%clk 0:03:01]}  exd4 {[%clk 0:02:57]} 5. Nxd4 {[%clk 0:03:02]}  Nxe4 {[%clk 0:02:56]} 6. Nxe4 {[%clk 0:03:01]}  Qe7 {[%clk 0:02:55]} 7. Nb5 {[%clk 0:02:29]}  Qxe4+ {[%clk 0:02:51]} 8. Be2 {[%clk 0:02:30]}  Bb4+ {[%clk 0:02:44]} 9. Bd2 {[%clk 0:02:16]}  O-O {[%clk 0:02:33]} 10. O-O {[%clk 0:02:10]}  Bxd2 {[%clk 0:02:22]} 11. Qxd2 {[%clk 0:02:11]}  Qe5 {[%clk 0:02:16]} 12. Rfe1 {[%clk 0:02:12]}  Qxb2 {[%clk 0:01:30]} 13. Rab1 {[%clk 0:02:10]}  Qxa2 {[%clk 0:01:19]} 14. Nxc7 {[%clk 0:02:10]}  Rb8 {[%clk 0:01:19]} 15. Qd6 {[%clk 0:02:11]}  g6 {[%clk 0:00:42]} 16. Bd3 {[%clk 0:01:51]}  b5 {[%clk 0:00:38]} 17. Nd5 {[%clk 0:01:44]}  Bb7 {[%clk 0:00:32]} 18. Nf6+ {[%clk 0:01:43]}  Kg7 {[%clk 0:00:32]} 19. Nxd7 {[%clk 0:01:44]}  Rbd8 {[%clk 0:00:19]} 20. Qf6+ {[%clk 0:01:31]}  Kg8 {[%clk 0:00:19]} 21. Nxf8 {[%clk 0:01:31]}  Rxf8 {[%clk 0:00:20]} 22. Rxb5 {[%clk 0:01:27]}  Ba8 {[%clk 0:00:19]} 23. Ra1 {[%clk 0:01:23]}  Qe6 {[%clk 0:00:14]} 24. Qxe6 {[%clk 0:01:23]}  fxe6 {[%clk 0:00:15]} 25. Rc5 {[%clk 0:01:19]}  Nd4 {[%clk 0:00:15]} 26. Rxa7 {[%clk 0:01:16]}  Rb8 {[%clk 0:00:13]} 27. f4 {[%clk 0:01:15]}  Bd5 {[%clk 0:00:10]} 28. Kf2 {[%clk 0:01:13]} 1-0


[Site "https://www.chess.com"]

[Event "Titled Tuesday Blitz May 17 Late 2022"]
[White "Ohanyan, Emin"]
[Black "Dubov, Daniil"]
[WhiteFideId "13312022"]
[BlackFideId "24126055"]
[WhiteElo "1927"]
[BlackElo "2791"]
[Result "0-1"]
[Round "03"]
[TimeControl "180+1"]
[Date "2022.05.17"]
[WhiteClock "0:00:06"]
[BlackClock "0:00:42"]

1. e4 {[%clk 0:03:00]}  c5 {[%clk 0:02:59]} 2. Nf3 {[%clk 0:02:59]}  e6 {[%clk 0:02:59]} 3. d4 {[%clk 0:02:57]}  cxd4 {[%clk 0:03:00]} 4. Nxd4 {[%clk 0:02:57]}  a6 {[%clk 0:03:00]} 5. Bd3 {[%clk 0:02:56]}  Bc5 {[%clk 0:02:59]} 6. Nb3 {[%clk 0:02:56]}  Ba7 {[%clk 0:02:58]} 7. O-O {[%clk 0:02:56]}  Nc6 {[%clk 0:02:57]} 8. Qe2 {[%clk 0:02:56]}  Nge7 {[%clk 0:02:54]} 9. Be3 {[%clk 0:02:56]}  O-O {[%clk 0:02:51]} 10. N1d2 {[%clk 0:02:55]}  b5 {[%clk 0:02:49]} 11. f4 {[%clk 0:02:48]}  Ng6 {[%clk 0:02:39]} 12. Bxa7 {[%clk 0:02:29]}  Rxa7 {[%clk 0:02:39]} 13. Qe3 {[%clk 0:02:29]}  d6 {[%clk 0:02:31]} 14. Nf3 {[%clk 0:02:26]}  Rc7 {[%clk 0:02:30]} 15. c3 {[%clk 0:02:23]}  Bb7 {[%clk 0:02:24]} 16. a3 {[%clk 0:02:20]}  Re8 {[%clk 0:02:22]} 17. Rae1 {[%clk 0:02:19]}  e5 {[%clk 0:02:18]} 18. f5 {[%clk 0:02:07]}  Nf4 {[%clk 0:02:17]} 19. Bb1 {[%clk 0:01:44]}  Qe7 {[%clk 0:02:16]} 20. g3 {[%clk 0:01:42]}  Nh5 {[%clk 0:02:15]} 21. Rd1 {[%clk 0:01:26]}  Rd8 {[%clk 0:02:13]} 22. Rd2 {[%clk 0:01:25]}  Nf6 {[%clk 0:02:10]} 23. Rfd1 {[%clk 0:01:25]}  Rcd7 {[%clk 0:02:08]} 24. Qb6 {[%clk 0:01:01]}  h6 {[%clk 0:02:01]} 25. h3 {[%clk 0:00:57]}  Nb8 {[%clk 0:01:55]} 26. Qe3 {[%clk 0:00:52]}  Rc8 {[%clk 0:01:52]} 27. Re2 {[%clk 0:00:29]}  Ba8 {[%clk 0:01:44]} 28. g4 {[%clk 0:00:25]}  d5 {[%clk 0:01:36]} 29. exd5 {[%clk 0:00:20]}  Bxd5 {[%clk 0:01:37]} 30. Nc1 {[%clk 0:00:12]}  Bxf3 {[%clk 0:01:29]} 31. Rxd7 {[%clk 0:00:13]}  Nbxd7 {[%clk 0:01:27]} 32. Qxf3 {[%clk 0:00:14]}  Nc5 {[%clk 0:01:28]} 33. Nd3 {[%clk 0:00:12]}  e4 {[%clk 0:01:26]} 34. Nxc5 {[%clk 0:00:12]}  Qxc5+ {[%clk 0:01:24]} 35. Qe3 {[%clk 0:00:11]}  Qe5 {[%clk 0:01:25]} 36. Kf2 {[%clk 0:00:03]}  Qh2+ {[%clk 0:01:18]} 37. Kf1 {[%clk 0:00:01]}  Qh1+ {[%clk 0:01:18]} 38. Qg1 {[%clk 0:00:02]}  Qxh3+ {[%clk 0:01:18]} 39. Qg2 {[%clk 0:00:03]}  Qh4 {[%clk 0:01:13]} 40. Bxe4 {[%clk 0:00:03]}  Rd8 {[%clk 0:01:14]} 41. Re3 {[%clk 0:00:01]}  Nxg4 {[%clk 0:01:08]} 42. Rg3 {[%clk 0:00:01]}  h5 {[%clk 0:01:01]} 43. Ke2 {[%clk 0:00:01]}  Qe7 {[%clk 0:00:56]} 44. Rd3 {[%clk 0:00:01]}  Re8 {[%clk 0:00:52]} 45. Rd4 {[%clk 0:00:02]}  Nf6 {[%clk 0:00:51]} 46. Kd3 {[%clk 0:00:03]}  Nxe4 {[%clk 0:00:48]} 47. Rxe4 {[%clk 0:00:03]}  Qxe4+ {[%clk 0:00:47]} 48. Qxe4 {[%clk 0:00:04]}  Rxe4 {[%clk 0:00:47]} 49. Kxe4 {[%clk 0:00:05]}  g5 {[%clk 0:00:47]} 50. b3 {[%clk 0:00:02]}  Kf8 {[%clk 0:00:46]} 51. c4 {[%clk 0:00:02]}  bxc4 {[%clk 0:00:46]} 52. bxc4 {[%clk 0:00:03]}  Ke7 {[%clk 0:00:45]} 53. c5 {[%clk 0:00:04]}  f6 {[%clk 0:00:44]} 54. Kd5 {[%clk 0:00:04]}  h4 {[%clk 0:00:44]} 55. c6 {[%clk 0:00:04]}  h3 {[%clk 0:00:43]} 56. c7 {[%clk 0:00:05]}  Kd7 {[%clk 0:00:42]} 57. c8=Q+ {[%clk 0:00:06]}  Kxc8 {[%clk 0:00:42]} 58. Ke6 {[%clk 0:00:06]}  h2 {[%clk 0:00:42]} 0-1


[Site "https://www.chess.com"]